[Event "WYCC U14 Open 2019"]
[Site "Mumbai"]
[Date "2019.10.10"]
[Round "9.7"]
[White "Kolay, Alex"]
[Black "Pranav Anand"]
[Result "1-0"]
[ECO "E90"]
[WhiteElo "2164"]
[BlackElo "2351"]
[Annotator "ChessBase"]
[PlyCount "54"]
[EventDate "2019.10.02"]
[EventType "swiss"]
[EventCountry "IND"]
[SourceTitle "playchess.com"]
[Source "ChessBase"]
[SourceQuality "1"]
[TimeControl "40/5400+30:1800+30"]

1. d4 {[%emt 0:00:00]} Nf6 {[%emt 0:00:00]} 2. c4 {[%emt 0:00:00]} g6 {[%emt 0:00:00]} 3. Nc3 {[%emt 0:00:00]} Bg7 {[%emt 0:00:00]} 4. e4 {[%emt 0:00:00]} d6 {[%emt 0:00:00]} 5. Nf3 {[%emt 0:00:00]} O-O {[%emt 0:00:00]} 6. h3 {[%emt 0:00:00]} e5 {[%emt 0:00:00]} 7. d5 {[%emt 0:00:07]} Nh5 {[%emt 0:00:02]} 8. g3 {[%emt 0:00:15]} f5 {[%emt 0:00:05]} 9. exf5 {[%emt 0:00:16]} gxf5 {[%emt 0:00:05]} 10. Ng5 {[%emt 0:00:16]} Qe8 {[%emt 0:01:28]} 11. Be2 {[%emt 0:00:24]} Nf6 {[%emt 0:00:12]} 12. Be3 {[%emt 0:01:00]} Na6 {[%emt 0:10:39]} 13. Qd2 {[%emt 0:02:44]} Bd7 {[%emt 0:07:22]} 14. O-O-O {[%emt 0:11:12]} h6 {[%emt 0:10:41]} 15. Nf3 {[%emt 0:00:42]} Nc5 {[%emt 0:00:49]} 16. g4 {[%emt 0:17:36]} fxg4 {[%emt 0:36:31]} 17. hxg4 {[%emt 0:01:01]} Nxg4 {[%emt 0:01:24]} 18. Rdg1 {[%emt 0:09:07]} h5 {[%emt 0:12:13]} 19. Bh6 {[%emt 0:05:52]} Nxh6 {[%emt 0:02:02]} 20. Qxh6 {[%emt 0:01:12]} Qf7 {[%emt 0:00:08]} 21. Kd1 {[%emt 0:01:43]} Rfe8 {[%emt 0:10:37]} 22. Rxh5 {[%emt 0:02:14]} Kf8 {[%emt 0:00:10]} 23. Qh7 {[%emt 0:00:07]} Bf6 {[%emt 0:02:23]} 24. Qxf7+ {[%emt 0:04:20]} Kxf7 {[%emt 0:00:06]} 25. Rh7+ {[%emt 0:00:09]} Kf8 {[%emt 0:00:04]} 26. Nh4 {[%emt 0:00:12]} Bxh4 {[%emt 0:02:16]} 27. Bh5 {[%emt 0:00:13]} Bc8 1-0

[Event "WYCC U14 Open 2019"]
[Site "Mumbai"]
[Date "2019.10.10"]
[Round "9.8"]
[White "Manish, Kumar"]
[Black "Jain Kashish Manoj"]
[Result "1/2-1/2"]
[ECO "C02"]
[WhiteElo "2132"]
[BlackElo "1930"]
[Annotator "ChessBase"]
[PlyCount "68"]
[EventDate "2019.10.02"]
[EventType "swiss"]
[EventCountry "IND"]
[SourceTitle "playchess.com"]
[Source "ChessBase"]
[SourceQuality "1"]
[TimeControl "40/5400+30:1800+30"]

1. e4 {[%emt 0:00:00]} e6 {[%emt 0:00:00]} 2. d4 {[%emt 0:00:00]} d5 {[%emt 0:00:00]} 3. e5 {[%emt 0:00:00]} c5 {[%emt 0:00:05]} 4. c3 {[%emt 0:00:00]} Nc6 {[%emt 0:00:13]} 5. Nf3 {[%emt 0:00:00]} Bd7 {[%emt 0:00:21]} 6. a3 {[%emt 0:00:01]} Nge7 {[%emt 0:00:37]} 7. b4 {[%emt 0:00:14]} cxd4 {[%emt 0:00:29]} 8. cxd4 {[%emt 0:00:00]} Nc8 {[%emt 0:01:43]} 9. Bd3 {[%emt 0:02:09]} Be7 {[%emt 0:00:22]} 10. O-O {[%emt 0:00:57]} Nb6 {[%emt 0:00:50]} 11. Nbd2 {[%emt 0:00:12]} Rc8 {[%emt 0:01:17]} 12. Bb2 {[%emt 0:00:42]} a6 {[%emt 0:00:32]} 13. Rc1 {[%emt 0:01:23]} Na7 {[%emt 0:00:55]} 14. Rxc8 {[%emt 0:04:50]} Qxc8 {[%emt 0:00:05]} 15. Qb1 {[%emt 0:00:28]} Bb5 {[%emt 0:00:22]} 16. Rc1 {[%emt 0:00:33]} Nc6 {[%emt 0:00:41]} 17. Ne1 {[%emt 0:01:31]} Bg5 {[%emt 0:00:23]} 18. Nef3 {[%emt 0:10:11]} Be7 {[%emt 0:02:11]} 19. h4 {[%emt 0:09:10]} h6 {[%emt 0:06:30]} 20. g3 {[%emt 0:03:45]} O-O {[%emt 0:00:17]} 21. Kg2 {[%emt 0:10:31]} Qd7 {[%emt 0:03:20]} 22. h5 {[%emt 0:04:03]} Rc8 {[%emt 0:04:37]} 23. g4 {[%emt 0:06:56]} Na7 {[%emt 0:05:58]} 24. Rxc8+ {[%emt 0:02:27]} Naxc8 {[%emt 0:02:37]} 25. Nf1 Bxd3 {[%emt 0:06:10]} 26. Qxd3 {[%emt 0:10:24]} Nc4 {[%emt 0:00:09]} 27. Bc1 {[%emt 0:00:16]} Qa4 {[%emt 0:11:54]} 28. Ne3 {[%emt 0:09:13]} N8b6 {[%emt 0:02:47]} 29. g5 {[%emt 0:00:05]} Nxe3+ {[%emt 0:01:01]} 30. Bxe3 {[%emt 0:00:05]} Nc4 {[%emt 0:00:52]} 31. Bc1 {[%emt 0:00:54]} hxg5 {[%emt 0:00:12]} 32. Bxg5 {[%emt 0:00:22]} Bf8 {[%emt 0:04:57]} 33. Bc1 {[%emt 0:00:43]} Be7 {[%emt 0:00:01]} 34. h6 {[%emt 0:09:37]} g6 {[%emt 0:00:49]} 1/2-1/2

[Event "WYCC U14 Open 2019"]
[Site "Mumbai"]
[Date "2019.10.10"]
[Round "9.9"]
[White "Wu, Logan"]
[Black "Pranav Vijay"]
[Result "1-0"]
[ECO "C88"]
[WhiteElo "1994"]
[BlackElo "2265"]
[Annotator "NA"]
[PlyCount "101"]
[EventDate "2019.10.02"]
[EventType "swiss"]
[EventCountry "IND"]
[SourceTitle "playchess.com"]
[Source "ChessBase"]
[SourceQuality "1"]
[TimeControl "40/5400+30:1800+30"]

1. e4 e5 2. Nf3 Nc6 3. Bb5 a6 4. Ba4 Nf6 5. O-O b5 6. Bb3 Bb7 7. Re1 Be7 8. c3 O-O 9. d4 d6 10. Nbd2 exd4 11. cxd4 Nb4 12. Nf1 c5 13. a3 c4 14. axb4 cxb3 15. d5 Nd7 16. Qxb3 Bf6 17. Ne3 Re8 18. Ng4 Rc8 19. Nxf6+ Qxf6 20. Bd2 Rc4 21. Rac1 Nb6 22. Rxc4 Nxc4 23. Bc3 Qg6 24. Qc2 Bc8 25. Qd3 f6 26. b3 Nb6 27. Bd2 Bg4 28. Bf4 Nd7 29. Nd4 f5 30. f3 Bh3 31. g3 Nf6 32. e5 Nxd5 33. Ne2 Qf7 34. Rd1 Nxb4 35. Qxd6 Qxb3 36. Qd7 Rf8 37. Kf2 g5 38. e6 g4 39. e7 Qxf3+ 40. Ke1 Qh1+ 41. Kd2 Qd5+ 42. Qxd5+ Nxd5 43. exf8=Q+ Kxf8 44. Ra1 b4 45. Rxa6 Bf1 46. Ra5 Bg2 47. Bd6+ Kf7 48. Nf4 Nb6 49. Rxf5+ Kg7 50. Be5+ Kh6 51. Rh5# 1-0

[Event "WYCC U14 Open 2019"]
[Site "Mumbai"]
[Date "2019.10.10"]
[Round "9.10"]
[White "Davtyan, Arsen"]
[Black "Flores Quillas, Diego Saul Rodri"]
[Result "1-0"]
[ECO "A67"]
[WhiteElo "1942"]
[BlackElo "2164"]
[Annotator "NA"]
[PlyCount "93"]
[EventDate "2019.10.02"]
[EventType "swiss"]
[EventCountry "IND"]
[SourceTitle "playchess.com"]
[Source "ChessBase"]
[SourceQuality "1"]
[TimeControl "40/5400+30:1800+30"]

1. d4 {[%emt 0:00:00]} Nf6 {[%emt 0:02:03]} 2. c4 {[%emt 0:00:06]} c5 {[%emt 0:00:04]} 3. d5 {[%emt 0:00:10]} e6 {[%emt 0:00:04]} 4. Nc3 {[%emt 0:00:09]} exd5 {[%emt 0:00:05]} 5. cxd5 {[%emt 0:00:09]} d6 {[%emt 0:00:06]} 6. e4 {[%emt 0:00:06]} g6 {[%emt 0:00:07]} 7. f4 {[%emt 0:00:05]} Bg7 {[%emt 0:00:11]} 8. Bb5+ {[%emt 0:00:24]} Nfd7 {[%emt 0:00:04]} 9. Bd3 {[%emt 0:00:13]} O-O {[%emt 0:10:38]} 10. Nf3 {[%emt 0:00:07]} Nb6 {[%emt 0:02:07]} 11. O-O {[%emt 0:02:08]} Bg4 {[%emt 0:01:27]} 12. h3 {[%emt 0:02:48]} Bxf3 {[%emt 0:01:06]} 13. Qxf3 {[%emt 0:00:15]} N8d7 {[%emt 0:01:09]} 14. Be3 {[%emt 0:02:10]} Re8 {[%emt 0:01:52]} 15. Rfe1 {[%emt 0:05:26]} a6 {[%emt 0:04:35]} 16. Bf2 {[%emt 0:10:43]} Rb8 {[%emt 0:05:02]} 17. Bg3 {[%emt 0:11:04]} Na8 {[%emt 0:05:30]} 18. Re2 {[%emt 0:11:38]} b5 {[%emt 0:04:37]} 19. Rae1 {[%emt 0:01:05]} c4 {[%emt 0:00:23]} 20. Bb1 {[%emt 0:00:30]} b4 21. Nd1 {[%emt 0:00:12]} Qc7 {[%emt 0:20:32]} 22. Ne3 {[%emt 0:04:46]} Nab6 {[%emt 0:06:45]} 23. Rc1 {[%emt 0:17:49]} c3 {[%emt 0:08:42]} 24. b3 {[%emt 0:03:19]} Rbc8 {[%emt 0:07:03]} 25. Bc2 {[%emt 0:01:09]} Qb7 {[%emt 0:11:23]} 26. Rce1 {[%emt 0:04:05]} a5 {[%emt 0:00:10]} 27. Bf2 {[%emt 0:04:54]} Ra8 {[%emt 0:00:43]} 28. g4 {[%emt 0:01:25]} h6 {[%emt 0:00:44]} 29. h4 {[%emt 0:00:31]} Re7 {[%emt 0:03:22]} 30. h5 {[%emt 0:03:55]} Kh7 {[%emt 0:01:04]} 31. hxg6+ {[%emt 0:05:06]} fxg6 {[%emt 0:00:02]} 32. e5 {[%emt 0:00:43]} dxe5 {[%emt 0:00:13]} 33. f5 {[%emt 0:00:14]} e4 {[%emt 0:02:10]} 34. fxg6+ {[%emt 0:00:07]} Kh8 {[%emt 0:00:48]} 35. Bxe4 {[%emt 0:01:07]} Rxe4 {[%emt 0:00:25]} 36. Qxe4 {[%emt 0:01:02]} Nf6 {[%emt 0:00:16]} 37. Qg2 {[%emt 0:01:44]} Qd7 {[%emt 0:00:30]} 38. d6 {[%emt 0:01:32]} Rc8 {[%emt 0:00:54]} 39. Nf5 {[%emt 0:02:03]} Nbd5 {[%emt 0:00:05]} 40. Bg3 {[%emt 0:01:11]} Qc6 {[%emt 0:01:21]} 41. Be5 {[%emt 0:11:48]} Qc5+ {[%emt 0:02:53]} 42. Bd4 {[%emt 0:00:39]} Qb5 {[%emt 0:00:11]} 43. g5 {[%emt 0:06:38]} hxg5 {[%emt 0:01:12]} 44. Qh3+ {[%emt 0:00:09]} Kg8 {[%emt 0:00:22]} 45. Nh6+ {[%emt 0:00:30]} Bxh6 {[%emt 0:00:18]} 46. Qxc8+ {[%emt 0:00:06]} Kg7 {[%emt 0:00:02]} 47. Qf5 {[%emt 0:00:56]} 1-0

[Event "WYCC U14 Open 2019"]
[Site "Mumbai"]
[Date "2019.10.10"]
[Round "9.11"]
[White "Amanzhol, Sultan"]
[Black "Sun, Jiajun B"]
[Result "1-0"]
[ECO "E26"]
[WhiteElo "2032"]
[BlackElo "1977"]
[Annotator "NA"]
[PlyCount "99"]
[EventDate "2019.10.02"]
[EventType "swiss"]
[EventCountry "IND"]
[SourceTitle "playchess.com"]
[Source "ChessBase"]
[SourceQuality "1"]
[TimeControl "40/5400+30:1800+30"]

1. d4 {[%emt 0:00:00]} Nf6 {[%emt 0:00:00]} 2. c4 {[%emt 0:00:46]} e6 {[%emt 0:00:00]} 3. Nc3 {[%emt 0:00:15]} Bb4 {[%emt 0:00:00]} 4. a3 {[%emt 0:01:02]} Bxc3+ {[%emt 0:00:20]} 5. bxc3 {[%emt 0:00:11]} c5 {[%emt 0:01:10]} 6. e3 {[%emt 0:00:23]} d6 {[%emt 0:01:13]} 7. Bd3 {[%emt 0:00:43]} Nc6 {[%emt 0:00:16]} 8. Ne2 {[%emt 0:01:37]} e5 {[%emt 0:02:28]} 9. O-O {[%emt 0:05:35]} Na5 {[%emt 0:14:38]} 10. e4 {[%emt 0:01:58]} Nd7 {[%emt 0:07:19]} 11. f4 {[%emt 0:18:12]} b6 {[%emt 0:14:48]} 12. Ng3 {[%emt 0:05:58]} g6 {[%emt 0:04:01]} 13. Ra2 {[%emt 0:12:39]} Nc6 {[%emt 0:13:42]} 14. fxe5 {[%emt 0:04:22]} dxe5 {[%emt 0:00:06]} 15. d5 {[%emt 0:01:37]} Na5 {[%emt 0:00:04]} 16. Raf2 {[%emt 0:01:27]} f6 {[%emt 0:00:07]} 17. Qa4 {[%emt 0:07:28]} Ke7 {[%emt 0:05:28]} 18. Bh6 {[%emt 0:02:57]} Rg8 {[%emt 0:02:05]} 19. h4 {[%emt 0:00:49]} Ba6 {[%emt 0:03:08]} 20. Qd1 {[%emt 0:05:13]} Qc7 {[%emt 0:01:48]} 21. Qe2 {[%emt 0:09:21]} Qd6 {[%emt 0:00:14]} 22. h5 {[%emt 0:00:33]} Rae8 {[%emt 0:00:13]} 23. Rf3 {[%emt 0:02:46]} Kd8 {[%emt 0:03:44]} 24. R1f2 {[%emt 0:00:37]} Re7 {[%emt 0:01:49]} 25. Nf1 {[%emt 0:02:19]} Rf7 {[%emt 0:01:44]} 26. Ne3 {[%emt 0:00:44]} Ke7 {[%emt 0:04:48]} 27. Rg3 {[%emt 0:02:17]} Kd8 {[%emt 0:01:45]} 28. Nf5 {[%emt 0:02:33]} Qb8 {[%emt 0:00:27]} 29. Nh4 {[%emt 0:00:29]} g5 {[%emt 0:01:31]} 30. Nf5 {[%emt 0:04:03]} Nb7 {[%emt 0:00:29]} 31. Rgf3 {[%emt 0:00:46]} Nd6 {[%emt 0:00:37]} 32. Nxd6 {[%emt 0:00:35]} Qxd6 {[%emt 0:00:14]} 33. Rf5 {[%emt 0:00:00]} g4 {[%emt 0:01:44]} 34. Bg5 {[%emt 0:01:34]} Kc7 {[%emt 0:00:07]} 35. Bh4 {[%emt 0:01:07]} Bc8 {[%emt 0:01:05]} 36. g3 {[%emt 0:00:14]} Qf8 {[%emt 0:02:03]} 37. Qf1 {[%emt 0:03:18]} Qh6 {[%emt 0:00:11]} 38. Bxf6 {[%emt 0:00:16]} Rxf6 {[%emt 0:00:44]} 39. Rxf6 {[%emt 0:00:09]} Nxf6 {[%emt 0:00:03]} 40. Rxf6 {[%emt 0:00:09]} Qe3+ {[%emt 0:00:06]} 41. Kg2 {[%emt 0:31:51]} Rg5 {[%emt 0:30:49]} 42. Rh6 {[%emt 0:00:00]} Qd2+ {[%emt 0:00:00]} 43. Be2 {[%emt 0:00:00]} Rg7 {[%emt 0:00:00]} 44. Rc6+ {[%emt 0:00:00]} Kb7 {[%emt 0:00:00]} 45. Rxc8 {[%emt 0:00:00]} Rg5 {[%emt 0:00:00]} 46. Rf8 {[%emt 0:00:00]} Qc2 {[%emt 0:00:00]} 47. d6 {[%emt 0:00:00]} Qxe4+ {[%emt 0:00:00]} 48. Kg1 {[%emt 0:00:00]} Qe3+ {[%emt 0:00:00]} 49. Qf2 {[%emt 0:00:00]} Qc1+ {[%emt 0:00:00]} 50. Bf1 {[%emt 0:00:00]} 1-0

[Event "WYCC U14 Open 2019"]
[Site "Mumbai"]
[Date "2019.10.10"]
[Round "9.12"]
[White "Ayush Sharma"]
[Black "Laux, Dominik"]
[Result "0-1"]
[ECO "B13"]
[WhiteElo "1939"]
[BlackElo "2015"]
[Annotator "NA"]
[PlyCount "64"]
[EventDate "2019.10.02"]
[EventType "swiss"]
[EventCountry "IND"]
[SourceTitle "playchess.com"]
[Source "ChessBase"]
[SourceQuality "1"]
[TimeControl "40/5400+30:1800+30"]

1. e4 {[%emt 0:00:00]} c6 {[%emt 0:00:00]} 2. d4 {[%emt 0:00:00]} d5 {[%emt 0:00:21]} 3. exd5 {[%emt 0:00:01]} cxd5 {[%emt 0:00:01]} 4. Bd3 {[%emt 0:00:12]} Nc6 {[%emt 0:00:36]} 5. c3 {[%emt 0:00:07]} Nf6 {[%emt 0:00:41]} 6. Bf4 {[%emt 0:00:10]} Bg4 {[%emt 0:01:18]} 7. Qb3 {[%emt 0:00:08]} Qd7 {[%emt 0:00:57]} 8. Nd2 {[%emt 0:00:12]} e6 {[%emt 0:00:45]} 9. Ngf3 {[%emt 0:00:15]} Bd6 {[%emt 0:00:41]} 10. Bxd6 {[%emt 0:01:10]} Qxd6 {[%emt 0:00:35]} 11. O-O {[%emt 0:00:19]} O-O {[%emt 0:00:11]} 12. Rae1 {[%emt 0:00:29]} Rab8 {[%emt 0:02:12]} 13. Ne5 {[%emt 0:00:18]} Bh5 {[%emt 0:01:52]} 14. f4 {[%emt 0:00:29]} Bg6 {[%emt 0:02:15]} 15. f5 {[%emt 0:14:23]} exf5 {[%emt 0:03:46]} 16. Bxf5 {[%emt 0:00:10]} Rfe8 {[%emt 0:02:57]} 17. Bxg6 {[%emt 0:01:36]} hxg6 {[%emt 0:03:37]} 18. Ndf3 {[%emt 0:02:12]} Re7 {[%emt 0:09:32]} 19. Nxc6 {[%emt 0:15:49]} bxc6 {[%emt 0:16:13]} 20. Qxb8+ {[%emt 0:02:21]} Qxb8 {[%emt 0:00:16]} 21. Rxe7 {[%emt 0:00:03]} Qxb2 {[%emt 0:02:51]} 22. Rfe1 {[%emt 0:10:00]} Ne4 {[%emt 0:08:36]} 23. Rxa7 {[%emt 0:07:57]} Qxc3 {[%emt 0:04:53]} 24. a4 {[%emt 0:04:46]} g5 {[%emt 0:02:52]} 25. h3 {[%emt 0:01:04]} f5 {[%emt 0:01:35]} 26. Rb1 {[%emt 0:05:49]} g4 {[%emt 0:03:45]} 27. Ra8+ {[%emt 0:03:01]} Kh7 {[%emt 0:01:06]} 28. Nh4 {[%emt 0:00:29]} Qe3+ {[%emt 0:01:04]} 29. Kh1 {[%emt 0:00:34]} Nf2+ {[%emt 0:00:10]} 30. Kh2 {[%emt 0:00:51]} g3+ {[%emt 0:00:07]} 31. Kg1 {[%emt 0:00:03]} Nd1+ {[%emt 0:00:04]} 32. Kh1 {[%emt 0:00:05]} Qe1# {[%emt 0:00:05]} 0-1

[Event "WYCC U14 Open 2019"]
[Site "Mumbai"]
[Date "2019.10.10"]
[Round "9.13"]
[White "Petkov, Momchil"]
[Black "Sahakyan, Aleks"]
[Result "1-0"]
[ECO "B92"]
[WhiteElo "2333"]
[BlackElo "1991"]
[Annotator "ChessBase"]
[PlyCount "65"]
[EventDate "2019.10.02"]
[EventType "swiss"]
[EventCountry "IND"]
[SourceTitle "playchess.com"]
[Source "ChessBase"]
[SourceQuality "1"]
[TimeControl "40/5400+30:1800+30"]

1. e4 {[%emt 0:00:00]} c5 {[%emt 0:00:00]} 2. Nf3 {[%emt 0:00:00]} d6 {[%emt 0:00:00]} 3. d4 {[%emt 0:00:00]} cxd4 {[%emt 0:00:00]} 4. Nxd4 {[%emt 0:00:00]} Nf6 {[%emt 0:00:00]} 5. Nc3 {[%emt 0:00:05]} a6 {[%emt 0:00:00]} 6. Be2 {[%emt 0:00:06]} e5 {[%emt 0:00:27]} 7. Nb3 {[%emt 0:00:12]} Be7 {[%emt 0:00:20]} 8. O-O {[%emt 0:00:13]} O-O {[%emt 0:01:42]} 9. Kh1 {[%emt 0:00:09]} Be6 {[%emt 0:02:23]} 10. f4 {[%emt 0:01:59]} b5 {[%emt 0:03:53]} 11. a4 {[%emt 0:21:52]} Nbd7 {[%emt 0:12:09]} 12. f5 {[%emt 0:16:19]} Bxb3 {[%emt 0:09:52]} 13. cxb3 {[%emt 0:00:05]} Nc5 {[%emt 0:01:41]} 14. Bf3 {[%emt 0:05:06]} bxa4 {[%emt 0:02:05]} 15. b4 {[%emt 0:03:40]} Nb3 {[%emt 0:00:50]} 16. Rxa4 {[%emt 0:00:11]} Nxc1 {[%emt 0:02:18]} 17. Qxc1 {[%emt 0:02:13]} Qb6 {[%emt 0:00:18]} 18. Qa1 {[%emt 0:02:02]} d5 {[%emt 0:10:47]} 19. Nxd5 {[%emt 0:02:18]} Nxd5 {[%emt 0:00:07]} 20. exd5 {[%emt 0:00:05]} Bxb4 {[%emt 0:00:09]} 21. f6 {[%emt 0:01:28]} a5 {[%emt 0:02:53]} 22. Be4 {[%emt 0:06:54]} Rac8 {[%emt 0:04:45]} 23. fxg7 {[%emt 0:03:46]} Kxg7 {[%emt 0:00:02]} 24. Qd1 {[%emt 0:01:28]} Qh6 {[%emt 0:07:53]} 25. Qg4+ {[%emt 0:01:00]} Kh8 {[%emt 0:00:03]} 26. Qf5 {[%emt 0:01:42]} Rc1 {[%emt 0:01:16]} 27. Ra1 {[%emt 0:00:25]} Rfc8 {[%emt 0:13:47]} 28. h3 {[%emt 0:09:01]} Bd6 {[%emt 0:02:55]} 29. Kh2 {[%emt 0:03:22]} R8c7 {[%emt 0:02:27]} 30. Rb1 Rxf1 31. Rxf1 {[%emt 0:01:24]} Rc1 {[%emt 0:01:34]} 32. Rxc1 {[%emt 0:00:09]} Qxc1 {[%emt 0:00:11]} 33. Qxh7# {[%emt 0:00:06]} 1-0

[Event "WYCC U14 Open 2019"]
[Site "Mumbai"]
[Date "2019.10.10"]
[Round "9.14"]
[White "Tadic, Stefan"]
[Black "Srikrishnan P"]
[Result "1-0"]
[ECO "C02"]
[WhiteElo "2295"]
[BlackElo "1929"]
[Annotator "ChessBase"]
[PlyCount "59"]
[EventDate "2019.10.02"]
[EventType "swiss"]
[EventCountry "IND"]
[SourceTitle "playchess.com"]
[Source "ChessBase"]
[SourceQuality "1"]
[TimeControl "40/5400+30:1800+30"]

1. e4 {[%emt 0:00:00]} e6 {[%emt 0:00:00]} 2. d4 {[%emt 0:00:00]} d5 {[%emt 0:00:00]} 3. e5 {[%emt 0:00:00]} c5 {[%emt 0:00:00]} 4. c3 {[%emt 0:00:00]} Qb6 {[%emt 0:00:00]} 5. Nf3 {[%emt 0:00:00]} Nc6 {[%emt 0:00:00]} 6. Bd3 {[%emt 0:00:00]} cxd4 {[%emt 0:00:00]} 7. cxd4 {[%emt 0:00:00]} Bd7 {[%emt 0:00:05]} 8. O-O {[%emt 0:00:02]} Nxd4 {[%emt 0:00:07]} 9. Nbd2 {[%emt 0:00:04]} Bc5 {[%emt 0:00:06]} 10. b4 {[%emt 0:00:20]} Qxb4 {[%emt 0:00:06]} 11. Nxd4 {[%emt 0:00:19]} Bxd4 {[%emt 0:04:19]} 12. Rb1 {[%emt 0:00:03]} Qa4 {[%emt 0:00:10]} 13. Qxa4 {[%emt 0:00:05]} Bxa4 {[%emt 0:00:28]} 14. Rb4 {[%emt 0:00:03]} Bxe5 {[%emt 0:02:58]} 15. Rxa4 {[%emt 0:00:21]} Bd6 {[%emt 0:06:48]} 16. Ba3 {[%emt 0:07:31]} Ke7 {[%emt 0:20:39]} 17. Rb1 {[%emt 0:00:21]} Nf6 {[%emt 0:15:25]} 18. Rxb7+ {[%emt 0:01:28]} Nd7 {[%emt 0:04:00]} 19. Bb5 {[%emt 0:05:21]} Rhd8 {[%emt 0:00:18]} 20. Rbxa7 {[%emt 0:18:12]} Rxa7 {[%emt 0:09:45]} 21. Rxa7 {[%emt 0:00:17]} Bxa3 {[%emt 0:00:14]} 22. Rxa3 {[%emt 0:00:06]} Rb8 {[%emt 0:00:51]} 23. Bxd7 {[%emt 0:01:41]} Rb2 {[%emt 0:04:03]} 24. Ra7 {[%emt 0:19:55]} Rxd2 {[%emt 0:00:07]} 25. Kf1 {[%emt 0:00:34]} d4 {[%emt 0:00:52]} 26. Ke1 {[%emt 0:02:09]} Rb2 {[%emt 0:00:07]} 27. Bb5+ {[%emt 0:00:54]} Kf6 {[%emt 0:00:45]} 28. Bd3 {[%emt 0:00:11]} e5 {[%emt 0:00:17]} 29. a4 {[%emt 0:00:21]} Ra2 {[%emt 0:00:15]} 30. Rxf7+ {[%emt 0:00:05]} 1-0

[Event "WYCC U14 Open 2019"]
[Site "Mumbai"]
[Date "2019.10.10"]
[Round "9.15"]
[White "Aaryan Varshney"]
[Black "Gokhale Rishabh Chandrashekhar"]
[Result "1/2-1/2"]
[ECO "A59"]
[WhiteElo "2239"]
[BlackElo "1925"]
[Annotator "ChessBase"]
[PlyCount "66"]
[EventDate "2019.10.02"]
[EventType "swiss"]
[EventCountry "IND"]
[SourceTitle "playchess.com"]
[Source "ChessBase"]
[SourceQuality "1"]
[TimeControl "40/5400+30:1800+30"]

1. d4 {[%emt 0:00:00]} Nf6 {[%emt 0:00:00]} 2. c4 {[%emt 0:00:02]} c5 {[%emt 0:00:09]} 3. d5 {[%emt 0:00:34]} b5 {[%emt 0:00:20]} 4. cxb5 {[%emt 0:00:19]} a6 {[%emt 0:00:06]} 5. bxa6 {[%emt 0:00:05]} Bxa6 {[%emt 0:00:12]} 6. Nc3 {[%emt 0:00:08]} d6 {[%emt 0:00:07]} 7. Nf3 {[%emt 0:00:11]} g6 {[%emt 0:00:10]} 8. e4 {[%emt 0:00:25]} Bxf1 {[%emt 0:00:09]} 9. Kxf1 {[%emt 0:00:06]} Bg7 {[%emt 0:00:07]} 10. g3 {[%emt 0:00:05]} O-O {[%emt 0:00:17]} 11. Kg2 {[%emt 0:00:08]} Nbd7 12. Re1 {[%emt 0:00:07]} Qa5 {[%emt 0:04:25]} 13. h3 {[%emt 0:00:10]} Rfb8 {[%emt 0:04:01]} 14. Qc2 {[%emt 0:01:22]} Ne8 {[%emt 0:05:10]} 15. a4 {[%emt 0:02:51]} Nc7 {[%emt 0:04:56]} 16. Bd2 {[%emt 0:02:42]} Qb6 {[%emt 0:20:07]} 17. Reb1 {[%emt 0:05:57]} Ra7 {[%emt 0:18:05]} 18. Ra3 {[%emt 0:08:32]} Rab7 {[%emt 0:01:59]} 19. Bg5 {[%emt 0:10:55]} Kf8 {[%emt 0:09:38]} 20. h4 {[%emt 0:13:34]} h5 {[%emt 0:03:19]} 21. Qd2 {[%emt 0:17:56]} Qb4 {[%emt 0:02:47]} 22. Bh6 {[%emt 0:01:46]} Kg8 {[%emt 0:02:24]} 23. Bxg7 {[%emt 0:04:23]} Kxg7 {[%emt 0:00:07]} 24. Qe2 {[%emt 0:01:22]} f6 {[%emt 0:02:30]} 25. Nd2 {[%emt 0:03:32]} Qa5 {[%emt 0:03:27]} 26. Nc4 {[%emt 0:01:22]} Qa6 {[%emt 0:00:36]} 27. f4 {[%emt 0:01:51]} Nb6 {[%emt 0:01:48]} 28. Nxb6 {[%emt 0:05:59]} Qxe2+ {[%emt 0:00:06]} 29. Nxe2 {[%emt 0:00:04]} Rxb6 {[%emt 0:00:05]} 30. b3 {[%emt 0:00:24]} Rb4 {[%emt 0:02:06]} 31. Kf3 {[%emt 0:00:25]} f5 {[%emt 0:01:21]} 32. exf5 {[%emt 0:02:03]} gxf5 {[%emt 0:00:26]} 33. Nc3 {[%emt 0:07:01]} c4 {[%emt 0:03:01] Ke4} 1/2-1/2